[Event "Titled Tuesday Blitz October 04 Late 2022"]
[White "Ibarra Jerez, Jose Carlos"]
[Black "Duda, Jan-Krzysztof"]
[WhiteFideId "2226332"]
[BlackFideId "1170546"]
[WhiteElo "2627"]
[BlackElo "2779"]
[Result "0-1"]
[Round "08"]
[TimeControl "180+1"]
[Date "2022.10.04"]
[WhiteClock "0:00:01"]
[BlackClock "0:00:03"]

1. Nf3 {[%clk 0:03:00]}  c5 {[%clk 0:02:58]} 2. g3 {[%clk 0:02:58]}  d5 {[%clk 0:02:58]} 3. Bg2 {[%clk 0:02:58]}  Nc6 {[%clk 0:02:54]} 4. d4 {[%clk 0:02:58]}  cxd4 {[%clk 0:02:54]} 5. Nxd4 {[%clk 0:02:58]}  e5 {[%clk 0:02:54]} 6. Nxc6 {[%clk 0:02:58]}  bxc6 {[%clk 0:02:55]} 7. c4 {[%clk 0:02:58]}  Be6 {[%clk 0:02:54]} 8. Qa4 {[%clk 0:02:52]}  Bd7 {[%clk 0:02:48]} 9. O-O {[%clk 0:02:47]}  Nf6 {[%clk 0:02:47]} 10. Bg5 {[%clk 0:02:28]}  Be7 {[%clk 0:02:44]} 11. Nc3 {[%clk 0:02:22]}  d4 {[%clk 0:02:33]} 12. Bxf6 {[%clk 0:02:22]}  gxf6 {[%clk 0:02:29]} 13. Bxc6 {[%clk 0:02:13]}  Rc8 {[%clk 0:02:14]} 14. Bxd7+ {[%clk 0:02:11]}  Qxd7 {[%clk 0:02:15]} 15. Qxd7+ {[%clk 0:02:08]}  Kxd7 {[%clk 0:02:16]} 16. Nd5 {[%clk 0:01:59]}  Rxc4 {[%clk 0:02:16]} 17. e3 {[%clk 0:01:14]}  Rhc8 {[%clk 0:02:00]} 18. Rad1 {[%clk 0:01:11]}  Bc5 {[%clk 0:01:28]} 19. Nxf6+ {[%clk 0:01:03]}  Ke7 {[%clk 0:01:27]} 20. Nd5+ {[%clk 0:00:49]}  Ke6 {[%clk 0:01:24]} 21. exd4 {[%clk 0:00:36]}  Bxd4 {[%clk 0:01:25]} 22. Ne3 {[%clk 0:00:36]}  Ra4 {[%clk 0:01:24]} 23. Rc1 {[%clk 0:00:26]}  Rxc1 {[%clk 0:01:19]} 24. Rxc1 {[%clk 0:00:27]}  Rxa2 {[%clk 0:01:17]} 25. Rc6+ {[%clk 0:00:26]}  Kd7 {[%clk 0:01:14]} 26. Rf6 {[%clk 0:00:26]}  Rxb2 {[%clk 0:00:56]} 27. Rxf7+ {[%clk 0:00:24]}  Kc6 {[%clk 0:00:56]} 28. Rxh7 {[%clk 0:00:22]}  a5 {[%clk 0:00:57]} 29. Nc4 {[%clk 0:00:18]}  Rxf2 {[%clk 0:00:40]} 30. Nxa5+ {[%clk 0:00:09]}  Kb5 {[%clk 0:00:38]} 31. Nb3 {[%clk 0:00:09]}  Be3 {[%clk 0:00:31]} 32. Kh1 {[%clk 0:00:09]}  Kc4 {[%clk 0:00:31]} 33. Na5+ {[%clk 0:00:07]}  Kd3 {[%clk 0:00:25]} 34. Nc6 {[%clk 0:00:05]}  e4 {[%clk 0:00:25]} 35. Rd7+ {[%clk 0:00:04]}  Ke2 {[%clk 0:00:23]} 36. Nd4+ {[%clk 0:00:04]}  Kf1 {[%clk 0:00:21]} 37. Re7 {[%clk 0:00:02]}  Rg2 {[%clk 0:00:18]} 38. h4 {[%clk 0:00:01]}  Bxd4 {[%clk 0:00:03]} 39. Rxe4 {[%clk 0:00:01]}  Bf2 {[%clk 0:00:03]} 0-1


[Site "https://www.chess.com"]

[Event "Titled Tuesday Blitz October 04 Late 2022"]
[White "Jobava, Baadur"]
[Black "Hambleton, Aman"]
[WhiteFideId "13601520"]
[BlackFideId "2606577"]
[WhiteElo "2582"]
[BlackElo "2538"]
[Result "1-0"]
[Round "08"]
[TimeControl "180+1"]
[Date "2022.10.04"]
[WhiteClock "0:02:08"]
[BlackClock "0:00:01"]

1. e4 {[%clk 0:03:00]}  c5 {[%clk 0:02:46]} 2. c3 {[%clk 0:03:00]}  Nf6 {[%clk 0:02:46]} 3. e5 {[%clk 0:03:00]}  Nd5 {[%clk 0:02:46]} 4. Nf3 {[%clk 0:03:01]}  e6 {[%clk 0:02:45]} 5. g3 {[%clk 0:03:01]}  d6 {[%clk 0:02:44]} 6. exd6 {[%clk 0:03:02]}  Bxd6 {[%clk 0:02:43]} 7. Bg2 {[%clk 0:03:03]}  Nc6 {[%clk 0:02:42]} 8. O-O {[%clk 0:03:04]}  O-O {[%clk 0:02:42]} 9. d4 {[%clk 0:03:05]}  cxd4 {[%clk 0:02:28]} 10. Nxd4 {[%clk 0:03:05]}  Nxd4 {[%clk 0:02:18]} 11. Qxd4 {[%clk 0:03:06]}  Qc7 {[%clk 0:02:15]} 12. c4 {[%clk 0:03:06]}  Nf6 {[%clk 0:01:53]} 13. Nc3 {[%clk 0:03:06]}  a6 {[%clk 0:01:32]} 14. Rd1 {[%clk 0:02:58]}  Bc5 {[%clk 0:01:15]} 15. Bf4 {[%clk 0:02:57]}  Qe7 {[%clk 0:00:36]} 16. Bd6 {[%clk 0:02:55]}  Bxd6 {[%clk 0:00:34]} 17. Qxd6 {[%clk 0:02:55]}  Qxd6 {[%clk 0:00:33]} 18. Rxd6 {[%clk 0:02:56]}  Rb8 {[%clk 0:00:26]} 19. Rad1 {[%clk 0:02:56]}  e5 {[%clk 0:00:20]} 20. c5 {[%clk 0:02:50]}  Bg4 {[%clk 0:00:16]} 21. R1d2 {[%clk 0:02:49]}  Rfc8 {[%clk 0:00:12]} 22. b4 {[%clk 0:02:48]}  a5 {[%clk 0:00:10]} 23. b5 {[%clk 0:02:44]}  Kf8 {[%clk 0:00:06]} 24. Na4 {[%clk 0:02:40]}  Ke7 {[%clk 0:00:04]} 25. f4 {[%clk 0:02:29]}  Bd7 {[%clk 0:00:02]} 26. fxe5 {[%clk 0:02:28]}  Bxb5 {[%clk 0:00:02]} 27. exf6+ {[%clk 0:02:28]}  gxf6 {[%clk 0:00:02]} 28. Nc3 {[%clk 0:02:23]}  Rxc5 {[%clk 0:00:02]} 29. Nxb5 {[%clk 0:02:24]}  Rxb5 {[%clk 0:00:03]} 30. Rd7+ {[%clk 0:02:24]}  Kf8 {[%clk 0:00:03]} 31. Bd5 {[%clk 0:02:20]}  Rb1+ {[%clk 0:00:02]} 32. Kg2 {[%clk 0:02:20]}  Kg7 {[%clk 0:00:03]} 33. Rxf7+ {[%clk 0:02:21]}  Kg6 {[%clk 0:00:03]} 34. Be4+ {[%clk 0:02:20]}  Kxf7 {[%clk 0:00:04]} 35. Bxb1 {[%clk 0:02:21]}  b5 {[%clk 0:00:04]} 36. Bxh7 {[%clk 0:02:20]}  a4 {[%clk 0:00:03]} 37. Bf5 {[%clk 0:02:20]}  b4 {[%clk 0:00:02]} 38. Rd7+ {[%clk 0:02:14]}  Kg8 {[%clk 0:00:01]} 39. Ra7 {[%clk 0:02:15]}  b3 {[%clk 0:00:01]} 40. Rxa4 {[%clk 0:02:14]}  b2 {[%clk 0:00:01]} 41. Bb1 {[%clk 0:02:13]}  Kf8 {[%clk 0:00:01]} 42. Rd4 {[%clk 0:02:08]} 1-0


[Site "https://www.chess.com"]

[Event "Titled Tuesday Blitz October 04 Late 2022"]
[White "Kollars, Dmitrij"]
[Black "Harvey, Marcus R"]
[WhiteFideId "12909572"]
[BlackFideId "400092"]
[WhiteElo "2584"]
[BlackElo "2457"]
[Result "1-0"]
[Round "08"]
[TimeControl "180+1"]
[Date "2022.10.04"]
[WhiteClock "0:02:28"]
[BlackClock "0:01:11"]

1. e4 {[%clk 0:03:00]}  c6 {[%clk 0:02:49]} 2. d4 {[%clk 0:02:57]}  d5 {[%clk 0:02:48]} 3. e5 {[%clk 0:02:58]}  Bf5 {[%clk 0:02:47]} 4. Nf3 {[%clk 0:02:56]}  e6 {[%clk 0:02:47]} 5. Be2 {[%clk 0:02:55]}  c5 {[%clk 0:02:47]} 6. c3 {[%clk 0:02:54]}  Nc6 {[%clk 0:02:47]} 7. O-O {[%clk 0:02:52]}  cxd4 {[%clk 0:02:47]} 8. cxd4 {[%clk 0:02:53]}  Nge7 {[%clk 0:02:38]} 9. Nh4 {[%clk 0:02:51]}  h6 {[%clk 0:02:36]} 10. Nxf5 {[%clk 0:02:45]}  Nxf5 {[%clk 0:02:36]} 11. Be3 {[%clk 0:02:46]}  Be7 {[%clk 0:02:29]} 12. Bg4 {[%clk 0:02:42]}  Nxe3 {[%clk 0:02:10]} 13. fxe3 {[%clk 0:02:43]}  Bg5 {[%clk 0:02:01]} 14. Qf3 {[%clk 0:02:36]}  O-O {[%clk 0:02:00]} 15. Nc3 {[%clk 0:02:35]}  a6 {[%clk 0:01:42]} 16. Kh1 {[%clk 0:02:34]}  Rc8 {[%clk 0:01:21]} 17. Rf2 {[%clk 0:02:32]}  Rc7 {[%clk 0:01:18]} 18. Raf1 {[%clk 0:02:30]}  g6 {[%clk 0:01:11]} 19. Bxe6 {[%clk 0:02:28]} 1-0


[Site "https://www.chess.com"]

[Event "Titled Tuesday Blitz October 04 Late 2022"]
[White "Machidon, Cristi"]
[Black "Leiva, Gianmarco"]
[WhiteFideId "13904590"]
[BlackFideId "3804399"]
[WhiteElo "2312"]
[BlackElo "2285"]
[Result "1-0"]
[Round "08"]
[TimeControl "180+1"]
[Date "2022.10.04"]
[WhiteClock "0:00:12"]
[BlackClock "0:00:02"]

1. d4 {[%clk 0:03:00]}  Nf6 {[%clk 0:03:00]} 2. c4 {[%clk 0:03:01]}  e6 {[%clk 0:03:00]} 3. Nc3 {[%clk 0:03:00]}  Bb4 {[%clk 0:03:00]} 4. e3 {[%clk 0:03:00]}  O-O {[%clk 0:03:00]} 5. Bd3 {[%clk 0:03:00]}  d5 {[%clk 0:02:55]} 6. Nf3 {[%clk 0:03:00]}  dxc4 {[%clk 0:02:54]} 7. Bxc4 {[%clk 0:03:01]}  c5 {[%clk 0:02:55]} 8. O-O {[%clk 0:03:00]}  cxd4 {[%clk 0:02:55]} 9. exd4 {[%clk 0:02:57]}  b6 {[%clk 0:02:55]} 10. Ne5 {[%clk 0:02:52]}  Bb7 {[%clk 0:02:54]} 11. Bg5 {[%clk 0:02:33]}  h6 {[%clk 0:02:16]} 12. Bh4 {[%clk 0:02:32]}  Be7 {[%clk 0:02:04]} 13. Re1 {[%clk 0:02:04]}  Nc6 {[%clk 0:02:04]} 14. Bxf6 {[%clk 0:01:45]}  Bxf6 {[%clk 0:02:02]} 15. Nxc6 {[%clk 0:01:45]}  Bxc6 {[%clk 0:02:02]} 16. d5 {[%clk 0:01:46]}  Bxc3 {[%clk 0:01:50]} 17. bxc3 {[%clk 0:01:40]}  exd5 {[%clk 0:01:43]} 18. Bb3 {[%clk 0:01:39]}  Rc8 {[%clk 0:01:38]} 19. Qd4 {[%clk 0:01:35]}  Re8 {[%clk 0:01:37]} 20. h3 {[%clk 0:01:32]}  Re4 {[%clk 0:01:13]} 21. Qd3 {[%clk 0:01:14]}  Qe7 {[%clk 0:00:53]} 22. Red1 {[%clk 0:01:09]}  Rd8 {[%clk 0:00:50]} 23. Bc2 {[%clk 0:00:59]}  Re8 {[%clk 0:00:41]} 24. f3 {[%clk 0:00:55]}  Qc5+ {[%clk 0:00:36]} 25. Kh2 {[%clk 0:00:47]}  Bb5 {[%clk 0:00:29]} 26. Qxd5 {[%clk 0:00:43]}  Qxd5 {[%clk 0:00:26]} 27. Rxd5 {[%clk 0:00:44]}  Re2 {[%clk 0:00:23]} 28. Bb3 {[%clk 0:00:37]}  Bc6 {[%clk 0:00:21]} 29. Rd3 {[%clk 0:00:31]}  g6 {[%clk 0:00:09]} 30. Rad1 {[%clk 0:00:29]}  Kg7 {[%clk 0:00:09]} 31. Kg1 {[%clk 0:00:21]}  R8e3 {[%clk 0:00:06]} 32. R1d2 {[%clk 0:00:18]}  Rxd3 {[%clk 0:00:06]} 33. Rxd3 {[%clk 0:00:19]}  a5 {[%clk 0:00:02]} 34. Rd6 {[%clk 0:00:18]}  Be8 {[%clk 0:00:02]} 35. Rxb6 {[%clk 0:00:17]}  a4 {[%clk 0:00:02]} 36. Bd5 {[%clk 0:00:17]}  Rc2 {[%clk 0:00:02]} 37. Rb8 {[%clk 0:00:15]}  Bd7 {[%clk 0:00:01]} 38. Rb7 {[%clk 0:00:15]}  Bf5 {[%clk 0:00:01]} 39. Rxf7+ {[%clk 0:00:15]}  Kh8 {[%clk 0:00:02]} 40. Rc7 {[%clk 0:00:15]}  a3 {[%clk 0:00:02]} 41. g4 {[%clk 0:00:14]}  Bd3 {[%clk 0:00:02]} 42. Rc8+ {[%clk 0:00:14]}  Kg7 {[%clk 0:00:02]} 43. Rc7+ {[%clk 0:00:15]}  Kf6 {[%clk 0:00:03]} 44. Bb3 {[%clk 0:00:14]}  Rc1+ {[%clk 0:00:02]} 45. Kf2 {[%clk 0:00:14]}  Ke5 {[%clk 0:00:02]} 46. Ke3 {[%clk 0:00:13]}  Bc2 {[%clk 0:00:02]} 47. Rb7 {[%clk 0:00:11]}  Bxb3 {[%clk 0:00:02]} 48. Rxb3 {[%clk 0:00:12]}  Rh1 {[%clk 0:00:01]} 49. Rxa3 {[%clk 0:00:12]}  Rxh3 {[%clk 0:00:02]} 50. Ra5+ {[%clk 0:00:12]}  Ke6 {[%clk 0:00:02]} 51. a4 {[%clk 0:00:13]}  Rh1 {[%clk 0:00:02]} 52. Ra6+ {[%clk 0:00:13]}  Kf7 {[%clk 0:00:02]} 53. a5 {[%clk 0:00:14]}  Rc1 {[%clk 0:00:02]} 54. Rc6 {[%clk 0:00:13]}  h5 {[%clk 0:00:02]} 55. gxh5 {[%clk 0:00:13]}  gxh5 {[%clk 0:00:03]} 56. a6 {[%clk 0:00:14]}  h4 {[%clk 0:00:02]} 57. a7 {[%clk 0:00:13]}  Rc2 {[%clk 0:00:02]} 58. a8=Q {[%clk 0:00:12]} 1-0


[Site "https://www.chess.com"]

[Event "Titled Tuesday Blitz October 04 Late 2022"]
[White "Maksimovic, Bojan"]
[Black "Tristan, Leonardo"]
[WhiteFideId "14408120"]
[BlackFideId "113816"]
[WhiteElo "2447"]
[BlackElo "2446"]
[Result "1-0"]
[Round "08"]
[TimeControl "180+1"]
[Date "2022.10.04"]
[WhiteClock "0:00:14"]
[BlackClock "0:00:08"]

1. e4 {[%clk 0:03:00]}  d5 {[%clk 0:02:59]} 2. exd5 {[%clk 0:03:00]}  Qxd5 {[%clk 0:03:00]} 3. Nc3 {[%clk 0:03:00]}  Qa5 {[%clk 0:03:01]} 4. d4 {[%clk 0:03:01]}  Nf6 {[%clk 0:03:01]} 5. Nf3 {[%clk 0:03:01]}  Bf5 {[%clk 0:03:02]} 6. Bc4 {[%clk 0:03:00]}  e6 {[%clk 0:03:02]} 7. Bd2 {[%clk 0:03:01]}  Bb4 {[%clk 0:03:02]} 8. O-O {[%clk 0:03:00]}  Nc6 {[%clk 0:03:02]} 9. a3 {[%clk 0:03:00]}  Bxc3 {[%clk 0:03:02]} 10. Bxc3 {[%clk 0:03:01]}  Qb6 {[%clk 0:03:02]} 11. Qe2 {[%clk 0:03:01]}  O-O {[%clk 0:03:02]} 12. h3 {[%clk 0:03:02]}  Rad8 {[%clk 0:03:02]} 13. Rfd1 {[%clk 0:03:01]}  Rfe8 {[%clk 0:03:02]} 14. Rd2 {[%clk 0:02:39]}  h6 {[%clk 0:02:57]} 15. Rad1 {[%clk 0:02:39]}  a6 {[%clk 0:02:57]} 16. Ne5 {[%clk 0:02:36]}  Ne4 {[%clk 0:02:48]} 17. Rd3 {[%clk 0:01:33]}  Nxe5 {[%clk 0:02:47]} 18. dxe5 {[%clk 0:01:31]}  Nxc3 {[%clk 0:02:37]} 19. Rxc3 {[%clk 0:01:31]}  Qxb2 {[%clk 0:02:30]} 20. Rb3 {[%clk 0:01:30]}  Rxd1+ {[%clk 0:02:05]} 21. Qxd1 {[%clk 0:01:31]}  Qxe5 {[%clk 0:02:06]} 22. Rxb7 {[%clk 0:01:31]}  Qc5 {[%clk 0:01:15]} 23. Bxa6 {[%clk 0:01:26]}  Bxc2 {[%clk 0:01:06]} 24. Qd7 {[%clk 0:01:22]}  Re7 {[%clk 0:01:05]} 25. Qd8+ {[%clk 0:01:23]}  Kh7 {[%clk 0:01:05]} 26. Rb8 {[%clk 0:01:24]}  Qxa3 {[%clk 0:00:57]} 27. Bb7 {[%clk 0:00:55]}  Qd6 {[%clk 0:00:39]} 28. Qh8+ {[%clk 0:00:34]}  Kg6 {[%clk 0:00:39]} 29. Rg8 {[%clk 0:00:35]}  Qe5 {[%clk 0:00:34]} 30. Bc6 {[%clk 0:00:30]}  Qc3 {[%clk 0:00:21]} 31. h4 {[%clk 0:00:26]}  f6 {[%clk 0:00:10]} 32. Bf3 {[%clk 0:00:19]}  Qe1+ {[%clk 0:00:09]} 33. Kh2 {[%clk 0:00:20]}  Qxf2 {[%clk 0:00:09]} 34. h5+ {[%clk 0:00:20]}  Kf5 {[%clk 0:00:09]} 35. Rxg7 {[%clk 0:00:16]}  Qh4+ {[%clk 0:00:10]} 36. Kg1 {[%clk 0:00:16]}  Qe1+ {[%clk 0:00:10]} 37. Kh2 {[%clk 0:00:16]}  Rxg7 {[%clk 0:00:11]} 38. Qxg7 {[%clk 0:00:16]}  Qh4+ {[%clk 0:00:12]} 39. Kg1 {[%clk 0:00:16]}  Qd4+ {[%clk 0:00:12]} 40. Kh2 {[%clk 0:00:15]}  Qf4+ {[%clk 0:00:13]} 41. Kg1 {[%clk 0:00:15]}  Be4 {[%clk 0:00:08]} 42. Qh7+ {[%clk 0:00:14]}  Ke5 {[%clk 0:00:08]} 43. Qxc7+ {[%clk 0:00:13]}  Kd4 {[%clk 0:00:08]} 44. Qxf4 {[%clk 0:00:14]} 1-0


[Site "https://www.chess.com"]

[Event "Titled Tuesday Blitz October 04 Late 2022"]
[White "Martinez Alcantara, Jose Eduardo"]
[Black "Svane, Rasmus"]
[WhiteFideId "3805662"]
[BlackFideId "4657101"]
[WhiteElo "2703"]
[BlackElo "2674"]
[Result "0-1"]
[Round "08"]
[TimeControl "180+1"]
[Date "2022.10.04"]
[WhiteClock "0:00:16"]
[BlackClock "0:00:10"]

1. e4 {[%clk 0:02:59]}  c6 {[%clk 0:03:00]} 2. d4 {[%clk 0:02:58]}  d5 {[%clk 0:03:01]} 3. e5 {[%clk 0:02:59]}  Bf5 {[%clk 0:03:01]} 4. h4 {[%clk 0:03:00]}  h5 {[%clk 0:03:02]} 5. Bd3 {[%clk 0:03:00]}  Bxd3 {[%clk 0:03:02]} 6. Qxd3 {[%clk 0:03:01]}  Qa5+ {[%clk 0:03:03]} 7. b4 {[%clk 0:03:02]}  Qa6 {[%clk 0:03:03]} 8. e6 {[%clk 0:03:02]}  Qxd3 {[%clk 0:03:03]} 9. cxd3 {[%clk 0:03:03]}  Nh6 {[%clk 0:03:04]} 10. Bxh6 {[%clk 0:03:03]}  gxh6 {[%clk 0:03:05]} 11. exf7+ {[%clk 0:03:04]}  Kxf7 {[%clk 0:03:05]} 12. Nf3 {[%clk 0:03:04]}  Nd7 {[%clk 0:03:04]} 13. Nbd2 {[%clk 0:03:03]}  e5 {[%clk 0:03:01]} 14. dxe5 {[%clk 0:03:03]}  Bxb4 {[%clk 0:03:02]} 15. Rb1 {[%clk 0:02:56]}  Bxd2+ {[%clk 0:03:00]} 16. Kxd2 {[%clk 0:02:51]}  b6 {[%clk 0:02:59]} 17. Rhe1 {[%clk 0:02:40]}  Rae8 {[%clk 0:02:53]} 18. Nd4 {[%clk 0:02:29]}  Nxe5 {[%clk 0:02:35]} 19. f4 {[%clk 0:02:26]}  Ng6 {[%clk 0:02:35]} 20. g3 {[%clk 0:02:24]}  c5 {[%clk 0:02:12]} 21. Nb5 {[%clk 0:02:22]}  Rxe1 {[%clk 0:02:07]} 22. Rxe1 {[%clk 0:02:23]}  Kf6 {[%clk 0:01:53]} 23. Nc7 {[%clk 0:02:11]}  Rd8 {[%clk 0:01:48]} 24. d4 {[%clk 0:01:34]}  Rd7 {[%clk 0:01:38]} 25. Nb5 {[%clk 0:01:20]}  a6 {[%clk 0:01:00]} 26. Nc3 {[%clk 0:01:20]}  cxd4 {[%clk 0:01:00]} 27. Ne2 {[%clk 0:01:21]}  Ne7 {[%clk 0:00:36]} 28. Nxd4 {[%clk 0:01:20]}  Nf5 {[%clk 0:00:37]} 29. Ne2 {[%clk 0:01:03]}  Rg7 {[%clk 0:00:34]} 30. Rc1 {[%clk 0:01:02]}  Nxg3 {[%clk 0:00:33]} 31. Nd4 {[%clk 0:00:58]}  Ne4+ {[%clk 0:00:33]} 32. Ke2 {[%clk 0:00:58]}  Rg2+ {[%clk 0:00:29]} 33. Ke3 {[%clk 0:00:59]}  Rg3+ {[%clk 0:00:28]} 34. Ke2 {[%clk 0:00:55]}  Rc3 {[%clk 0:00:28]} 35. Rg1 {[%clk 0:00:50]}  Ng3+ {[%clk 0:00:25]} 36. Kd2 {[%clk 0:00:48]}  Ra3 {[%clk 0:00:25]} 37. Rc1 {[%clk 0:00:37]}  Rxa2+ {[%clk 0:00:25]} 38. Kd1 {[%clk 0:00:36]}  Rf2 {[%clk 0:00:20]} 39. Rc6+ {[%clk 0:00:36]}  Kf7 {[%clk 0:00:19]} 40. Rc7+ {[%clk 0:00:34]}  Kf6 {[%clk 0:00:19]} 41. Rc6+ {[%clk 0:00:34]}  Ke7 {[%clk 0:00:20]} 42. Rc7+ {[%clk 0:00:25]}  Kd6 {[%clk 0:00:20]} 43. Rc6+ {[%clk 0:00:26]}  Kd7 {[%clk 0:00:20]} 44. Rxb6 {[%clk 0:00:26]}  Rxf4 {[%clk 0:00:20]} 45. Nb3 {[%clk 0:00:27]}  Rxh4 {[%clk 0:00:18]} 46. Rxh6 {[%clk 0:00:27]}  Rh1+ {[%clk 0:00:14]} 47. Kd2 {[%clk 0:00:27]}  h4 {[%clk 0:00:14]} 48. Nc5+ {[%clk 0:00:26]}  Ke7 {[%clk 0:00:14]} 49. Nd3 {[%clk 0:00:25]}  h3 {[%clk 0:00:14]} 50. Nf2 {[%clk 0:00:25]}  Rh2 {[%clk 0:00:12]} 51. Ke1 {[%clk 0:00:26]}  a5 {[%clk 0:00:11]} 52. Rh7+ {[%clk 0:00:22]}  Kd6 {[%clk 0:00:11]} 53. Nxh3 {[%clk 0:00:19]}  a4 {[%clk 0:00:11]} 54. Rh6+ {[%clk 0:00:16]}  Kc5 {[%clk 0:00:11]} 55. Kd1 {[%clk 0:00:13]}  a3 {[%clk 0:00:11]} 56. Ra6 {[%clk 0:00:14]}  Rxh3 {[%clk 0:00:11]} 57. Rxa3 {[%clk 0:00:15]}  Rh1+ {[%clk 0:00:11]} 58. Kd2 {[%clk 0:00:15]}  Ne4+ {[%clk 0:00:12]} 59. Ke2 {[%clk 0:00:15]}  Kd6 {[%clk 0:00:12]} 60. Ra8 {[%clk 0:00:15]}  Ke5 {[%clk 0:00:11]} 61. Kf3 {[%clk 0:00:16]}  Rf1+ {[%clk 0:00:11]} 62. Ke3 {[%clk 0:00:17]}  d4+ {[%clk 0:00:11]} 63. Kd3 {[%clk 0:00:18]}  Rf3+ {[%clk 0:00:11]} 64. Ke2 {[%clk 0:00:19]}  Re3+ {[%clk 0:00:11]} 65. Kd1 {[%clk 0:00:20]}  Kd5 {[%clk 0:00:09]} 66. Rd8+ {[%clk 0:00:20]}  Kc4 {[%clk 0:00:10]} 67. Rc8+ {[%clk 0:00:20]}  Kd3 {[%clk 0:00:10]} 68. Kc1 {[%clk 0:00:20]}  Re1+ {[%clk 0:00:10]} 69. Kb2 {[%clk 0:00:20]}  Nc3 {[%clk 0:00:10]} 70. Rh8 {[%clk 0:00:19]}  Re2+ {[%clk 0:00:10]} 71. Kb3 {[%clk 0:00:19]}  Kd2 {[%clk 0:00:10]} 72. Rc8 {[%clk 0:00:18]}  Ne4 {[%clk 0:00:10]} 73. Rd8 {[%clk 0:00:16]}  d3 {[%clk 0:00:10]} 74. Kc4 {[%clk 0:00:17]}  Re3 {[%clk 0:00:09]} 75. Ra8 {[%clk 0:00:16]}  Ke2 {[%clk 0:00:09]} 76. Rh8 {[%clk 0:00:16]}  d2 {[%clk 0:00:10]} 77. Rh2+ {[%clk 0:00:16]}  Nf2 {[%clk 0:00:10]} 0-1


[Site "https://www.chess.com"]

[Event "Titled Tuesday Blitz October 04 Late 2022"]
[White "Melikyan, Gnel"]
[Black "Erdogdu, Mert"]
[WhiteFideId "54109990"]
[BlackFideId "6301495"]
[WhiteElo "2138"]
[BlackElo "2413"]
[Result "0-1"]
[Round "08"]
[TimeControl "180+1"]
[Date "2022.10.04"]
[WhiteClock "0:00:04"]
[BlackClock "0:00:30"]

1. e4 {[%clk 0:03:00]}  c5 {[%clk 0:02:59]} 2. Nf3 {[%clk 0:03:01]}  d6 {[%clk 0:02:59]} 3. d4 {[%clk 0:03:01]}  cxd4 {[%clk 0:03:00]} 4. Nxd4 {[%clk 0:03:02]}  Nf6 {[%clk 0:03:00]} 5. Nc3 {[%clk 0:03:02]}  a6 {[%clk 0:03:01]} 6. Be3 {[%clk 0:03:00]}  e6 {[%clk 0:03:01]} 7. g4 {[%clk 0:03:00]}  b5 {[%clk 0:02:59]} 8. Bg2 {[%clk 0:03:00]}  Bb7 {[%clk 0:03:00]} 9. g5 {[%clk 0:02:59]}  Nfd7 {[%clk 0:03:00]} 10. Qe2 {[%clk 0:02:59]}  Nb6 {[%clk 0:02:59]} 11. O-O-O {[%clk 0:02:58]}  N8d7 {[%clk 0:02:59]} 12. f4 {[%clk 0:02:58]}  Rc8 {[%clk 0:02:59]} 13. h4 {[%clk 0:02:43]}  Rxc3 {[%clk 0:02:58]} 14. bxc3 {[%clk 0:02:43]}  Qc7 {[%clk 0:02:59]} 15. Nb3 {[%clk 0:02:37]}  Na4 {[%clk 0:02:52]} 16. Rd3 {[%clk 0:02:24]}  Nxc3 {[%clk 0:02:44]} 17. Rxc3 {[%clk 0:02:13]}  Qxc3 {[%clk 0:02:44]} 18. Bd4 {[%clk 0:02:13]}  Qc7 {[%clk 0:02:43]} 19. Bb2 {[%clk 0:02:09]}  e5 {[%clk 0:02:39]} 20. f5 {[%clk 0:02:04]}  Nb6 {[%clk 0:02:38]} 21. Na5 {[%clk 0:02:00]}  Ba8 {[%clk 0:02:36]} 22. Rd1 {[%clk 0:01:57]}  Na4 {[%clk 0:02:34]} 23. Qd2 {[%clk 0:01:51]}  Be7 {[%clk 0:02:21]} 24. f6 {[%clk 0:01:36]}  gxf6 {[%clk 0:02:18]} 25. gxf6 {[%clk 0:01:37]}  Bxf6 {[%clk 0:02:15]} 26. Qxd6 {[%clk 0:01:37]}  Qxd6 {[%clk 0:02:14]} 27. Rxd6 {[%clk 0:01:38]}  Bxh4 {[%clk 0:01:59]} 28. Rxa6 {[%clk 0:01:33]}  O-O {[%clk 0:01:58]} 29. Bxe5 {[%clk 0:01:22]}  Nc5 {[%clk 0:01:56]} 30. Rb6 {[%clk 0:01:17]}  Nd7 {[%clk 0:01:34]} 31. Rxb5 {[%clk 0:01:11]}  Nxe5 {[%clk 0:01:34]} 32. Rxe5 {[%clk 0:01:11]}  Rd8 {[%clk 0:01:31]} 33. Nc4 {[%clk 0:01:00]}  Bf6 {[%clk 0:01:24]} 34. Rf5 {[%clk 0:00:58]}  Bc3 {[%clk 0:01:23]} 35. e5 {[%clk 0:00:43]}  Bxg2 {[%clk 0:01:16]} 36. Rg5+ {[%clk 0:00:43]}  Kf8 {[%clk 0:01:16]} 37. Rxg2 {[%clk 0:00:43]}  Rd4 {[%clk 0:01:15]} 38. Nd6 {[%clk 0:00:38]}  Rf4 {[%clk 0:01:07]} 39. Kd1 {[%clk 0:00:25]}  Bxe5 {[%clk 0:01:04]} 40. Nb5 {[%clk 0:00:19]}  Rb4 {[%clk 0:01:01]} 41. Na7 {[%clk 0:00:17]}  Bc3 {[%clk 0:00:51]} 42. Ke2 {[%clk 0:00:14]}  Ra4 {[%clk 0:00:49]} 43. Kd3 {[%clk 0:00:07]}  Bf6 {[%clk 0:00:45]} 44. Nb5 {[%clk 0:00:06]}  Rxa2 {[%clk 0:00:44]} 45. Rf2 {[%clk 0:00:04]}  Be7 {[%clk 0:00:42]} 46. Re2 {[%clk 0:00:03]}  h5 {[%clk 0:00:42]} 47. c3 {[%clk 0:00:03]}  Ra1 {[%clk 0:00:38]} 48. Nd4 {[%clk 0:00:03]}  h4 {[%clk 0:00:37]} 49. Nf5 {[%clk 0:00:04]}  Bf6 {[%clk 0:00:38]} 50. Rh2 {[%clk 0:00:04]}  Ra3 {[%clk 0:00:31]} 51. Nxh4 {[%clk 0:00:05]}  Rxc3+ {[%clk 0:00:31]} 52. Kd2 {[%clk 0:00:05]}  Ra3 {[%clk 0:00:30]} 53. Kd1 {[%clk 0:00:04]}  Ra1+ {[%clk 0:00:30]} 54. Ke2 {[%clk 0:00:04]}  Ra2+ {[%clk 0:00:30]} 0-1


[Site "https://www.chess.com"]